[Event "31st MPL National U18 Chess-ch 2022"]
[Site "Pollachi"]
[Date "2022.04.22"]
[Round "10.8"]
[White "Manish Anto Cristiano F"]
[Black "Sathvik Adiga"]
[Result "1-0"]
[ECO "E97"]
[WhiteElo "2236"]
[BlackElo "1562"]
[Annotator "TA"]
[PlyCount "105"]
[EventDate "2022.04.18"]
[EventCountry "IND"]
[SourceTitle "playchess.com"]
[Source "ChessBase"]
[SourceQuality "1"]
[TimeControl "5400+30"]

{[%evp 19,104,31,27,18,35,16,23,23,37,35,63,54,49,37,46,62,79,79,82,81,181,161,141,22,26,18,18,22,23,27,18,19,160,164,162,177,226,80,214,217,220,212,489,485,806,806,803,793,1052,1041,1479,1510,1281,1308,1040,961,1869,2636,3131,2676,3530,2449,7170,6813,6153,6223,29984,29983,29990,29991,29991,29992,29992,29993,29993,29994,29994,29995,29996,29996,29996,29997,29997,29998,29998,29999,29999]} 1. d4 {[%emt 0:00:03]} Nf6 {[%emt 0:00:04]} 2. c4 {[%emt 0:00:14]} g6 {[%emt 0:00:04]} 3. Nc3 {[%emt 0:00:18]} Bg7 {[%emt 0:00:06]} 4. e4 {[%emt 0:00:10]} d6 {[%emt 0:00:05]} 5. Nf3 {[%emt 0:00:07]} O-O {[%emt 0:00:07]} 6. Be2 {[%emt 0:00:08]} e5 {[%emt 0:00:05]} 7. Be3 {[%emt 0:01:30]} Ng4 {[%emt 0:00:30]} 8. Bg5 {[%emt 0:00:09]} f6 {[%emt 0:00:06][%cal Bf7f6,Bf6f5][%mdl 32]} 9. Bc1 {[%emt 0:00:06]} Nc6 {[%emt 0:00:37] 9...exd4 is vanishing.} 10. O-O {[%emt 1:32:45]} f5 {[%emt 0:14:22][%cal Re5d4]} 11. dxe5 $1 {[%emt 0:00:00][%mdl 4] is currently scoring better than 11.Bg5. E97: King's Indian: Classical Main Line (6...e5 7 0-0 Nc6): 8 Be3 and 8 d5 Ne7, not 9 Ne1.} dxe5 {[%emt 0:02:06]} 12. Qd5+ {[%emt 0:00:00]} Kh8 {[%emt 0:00:06]} 13. Qxd8 {[%emt 0:00:00] [#] White has an edge.} Nxd8 $146 {[%emt 1:18:42]} ({Predecessor:} 13... Rxd8 14. Nd5 Rd7 15. Bg5 h6 16. Be3 Nxe3 17. fxe3 Ne7 18. Nxe7 Rxe7 19. Nh4 Kh7 20. exf5 Bxf5 21. Nxf5 gxf5 22. Rxf5 {1-0 (31) Cebalo,M (2485)-Lisjak,Z (2355) Pula 1993}) 14. Nb5 {[%emt 0:02:00]} Rf7 {[%emt 0:00:30]} 15. exf5 {[%emt 0:00:00]} Bxf5 {[%emt 0:00:30]} 16. h3 {[%emt 0:00:00]} Nh6 {[%emt 0:00:30]} 17. g4 {[%emt 0:01:30]} Bc8 {[%emt 0:00:30]} 18. Rd1 {[%emt 0:00:30]} Nc6 {[%emt 0:00:00]} 19. Be3 {[%emt 0:00:30]} b6 {[%emt 0:01:00]} (19... a6 $16) 20. Ng5 $36 {[%emt 0:00:30][%mdl 2048] White is really pushing.} Re7 {[%emt 0:00:00]} 21. Nc3 {[%emt 0:00:30]} (21. c5 $16) 21... Nd4 $11 {[%emt 0:00:00]} 22. Bf3 {[%emt 0:00:30]} Nxf3+ {[%emt 0:00:00]} 23. Nxf3 {[%emt 0:00:00] Black must now prevent Bxh6.} Nf7 {[%emt 0:00:00]} 24. Ng5 {[%emt 0:00:00]} Bb7 {[%emt 0:00:00]} 25. Nd5 {[%emt 0:00:00] Pair of Knights!} Rd7 {[%emt 0:00:00] [#]} (25... Bxd5 $11 26. cxd5 Nxg5 27. Bxg5 Rf7) 26. Nxb6 $1 $16 {[%emt 0:02:00][%mdl 512] &Bianco is much more active.} Rxd1+ {[%emt 0:00:00]} 27. Rxd1 {[%emt 0:00:00]} axb6 {[%emt 0:00:00]} (27... cxb6 $142 28. Nxf7+ Kg8) 28. Nxf7+ $18 {[%emt 0:00:00]} Kg8 {[%emt 0:00:00] This costs Black the game.} 29. Rd7 {[%emt 0:00:00]} Rxa2 {[%emt 0:00:00]} 30. Rxc7 {[%emt 0:00:00]} Bf3 {[%emt 0:00:00]} (30... Ba8 31. Nh6+ (31. Bxb6 h5 $16) 31... Bxh6 32. Bxh6 Ra1+ 33. Kh2 Be4 34. Rg7+ Kh8) 31. Ng5 {[%emt 0:00:00]} e4 {[%emt 0:00:00]} (31... Ra1+ $142 32. Kh2 Bh1 33. Rc8+ Bf8) 32. Rc8+ {[%emt 0:00:00]} Bf8 {[%emt 0:06:30]} 33. Nxf3 {[%emt 0:00:00]} Ra1+ {[%emt 0:00:00]} 34. Kh2 {[%emt 0:00:00]} exf3 {[%emt 0:00:00][%mdl 4096] Endgame KRB-KRB} 35. Bh6 {[%emt 0:00:00][%csl Gh6][%cal Rc8f8]} Kf7 {[%emt 0:00:00]} 36. Rxf8+ {[%emt 0:00:00] KRB-KR} Ke7 {[%emt 0:00:00]} 37. Rxf3 {[%emt 0:00:00] And now Rb3 would win.} Ra2 {[%emt 0:00:00]} 38. Rb3 {[%emt 0:00:00]} Ra6 {[%emt 0:00:00]} 39. Rb4 {[%emt 0:00:00] Threatens to win with Be3.} Kd7 {[%emt 0:00:00]} 40. Be3 {[%emt 0:00:00]} Kc7 {[%emt 0:00:00] [#]} 41. Rxb6 $1 {[%emt 0:00:00]} Ra1 {[%emt 0:00:00]} (41... Ra8 42. c5) 42. c5 {[%emt 0:00:00] Bf4+ would kill now.} h5 {[%emt 0:00:00]} 43. Bf4+ {[%emt 0:00:00] White mates.} Kd7 {[%emt 0:00:00]} 44. c6+ {[%emt 0:00:00]} Ke7 {[%emt 0:00:00]} 45. c7 {[%emt 0:00:00]} Kd7 {[%emt 0:00:00]} 46. Rb8 {[%emt 0:00:00]} Rc1 {[%emt 0:00:00]} 47. Rd8+ {[%emt 0:00:00]} Ke7 {[%emt 0:00:00]} 48. Bxc1 {[%emt 0:00:00]} hxg4 {[%emt 0:00:00]} 49. c8=Q {[%emt 0:00:00]} g3+ {[%emt 0:00:00]} 50. fxg3 {[%emt 0:00:00]} Kf6 {[%emt 0:00:00]} 51. Qc6+ {[%emt 0:00:00]} Ke5 {[%emt 0:00:00]} 52. Bf4+ {[%emt 0:00:00]} Kf5 {[%emt 0:00:00]} 53. Rf8# {[%emt 0:00:00] Weighted Error Value: White=0.16 (very precise) /Black=0.80} 1-0

[Event "31st MPL National U18 Chess-ch 2022"]
[Site "Pollachi"]
[Date "2022.04.22"]
[Round "10.9"]
[White "Rakshith Srinivasan"]
[Black "Midilesh MS"]
[Result "1-0"]
[ECO "B42"]
[WhiteElo "1856"]
[BlackElo "1470"]
[Annotator "NA RC COMBH"]
[PlyCount "83"]
[EventDate "2022.04.18"]
[EventCountry "IND"]
[SourceTitle "playchess.com"]
[Source "ChessBase"]
[SourceQuality "1"]
[TimeControl "5400+30"]

1. e4 {[%emt 0:00:02]} c5 {[%emt 1:31:00]} 2. Nf3 {[%emt 0:00:03]} e6 {[%emt 0:00:00]} 3. d4 {[%emt 0:00:02]} cxd4 {[%emt 0:01:00]} 4. Nxd4 {[%emt 0:00:04]} a6 {[%emt 0:00:00]} 5. Bd3 {[%emt 1:32:49]} Nf6 {[%emt 0:01:00]} 6. O-O {[%emt 0:00:30]} Qc7 {[%emt 0:00:30]} 7. Qe2 {[%emt 0:00:00]} d6 {[%emt 0:00:00]} 8. c4 {[%emt 0:01:00]} Nbd7 {[%emt 0:01:00]} 9. f4 {[%emt 0:01:30]} Be7 {[%emt 0:00:30]} 10. Nc3 {[%emt 0:00:30]} O-O {[%emt 0:00:30]} 11. Be3 {[%emt 0:00:30]} b6 {[%emt 0:00:30]} 12. g4 {[%emt 0:00:30]} g6 {[%emt 0:00:30]} 13. g5 {[%emt 0:00:30]} Nh5 {[%emt 0:00:30]} 14. Rac1 {[%emt 0:00:30]} Bb7 {[%emt 0:00:00]} 15. f5 {[%emt 0:00:00]} exf5 {[%emt 0:01:00]} 16. exf5 {[%emt 0:01:00]} Rae8 $1 {[%emt 0:00:30]} 17. Nd5 {[%emt 0:00:30] [#]} (17. Qd2 $14 {keeps the upper hand.}) 17... Qb8 $2 {[%emt 0:00:30]} (17... Bxg5 $1 $17 {[%mdl 512]} 18. Nxc7 Bxe3+ 19. Rf2 Nf4) 18. Qd2 {[%emt 0:00:00]} ({Don't do} 18. f6 $6 Bd8 $16) ({White should play} 18. fxg6 $18 hxg6 19. Qg2) 18... Nc5 $2 {[%emt 0:00:00]} (18... Ne5 $16) 19. Nb3 $2 {[%emt 0:01:00]} (19. Be2 $18) 19... Nxd3 {[%emt 0:01:00]} 20. Qxd3 {[%emt 0:01:30] [#]} Bd8 $1 {[%emt 0:00:30]} 21. Rce1 $17 {[%emt 0:00:30]} b5 {[%emt 0:00:00]} 22. cxb5 Qa8 {[%emt 0:01:00]} 23. Nf6+ {[%emt 0:01:00]} Bxf6 {[%emt 0:00:00]} 24. gxf6 {[%emt 0:00:00]} Re4 {[%emt 0:01:00]} 25. h3 {[%emt 0:01:00]} Rfe8 {[%emt 0:00:30]} 26. Na5 {[%emt 0:00:30]} axb5 {[%emt 0:00:30]} 27. Nxb7 {[%emt 0:00:00]} Qxb7 {[%emt 0:00:30]} 28. Qd2 {[%emt 0:01:00]} Ng3 {[%emt 0:00:30]} 29. Rf3 {[%emt 0:00:30]} Rg4 {[%emt 0:00:00]} 30. Qd1 {[%emt 0:00:30]} Ne2+ {[%emt 0:00:02]} 31. Kf2 {[%emt 0:00:00]} Rxe3 {[%emt 0:00:51]} 32. Kxe3 {[%emt 0:01:00]} Qe4+ {[%emt 0:00:36]} 33. Kf2 {[%emt 0:00:00]} Rf4 {[%emt 0:00:27]} 34. Qxe2 {[%emt 0:00:00]} Rxf3+ {[%emt 0:00:30]} 35. Qxf3 {[%emt 0:00:00]} Qh4+ {[%emt 0:00:05]} 36. Kf1 {[%emt 0:00:00]} Qc4+ {[%emt 0:00:05]} 37. Kg2 {[%emt 0:00:00]} Qc2+ {[%emt 0:00:22]} 38. Re2 {[%emt 0:00:00]} Qxe2+ {[%emt 0:00:28]} 39. Qxe2 {[%emt 0:00:00]} h5 {[%emt 0:00:14]} 40. Qe8+ {[%emt 0:00:00]} Kh7 {[%emt 0:00:04]} 41. Qxf7+ {[%emt 0:04:30]} Kh6 {[%emt 0:00:06]} 42. Qxg6# {[%emt 0:00:00]} 1-0

[Event "31st MPL National U18 Chess-ch 2022"]
[Site "Pollachi"]
[Date "2022.04.22"]
[Round "10.10"]
[White "Jani Kushal R"]
[Black "Sooriya B Y"]
[Result "1-0"]
[ECO "A07"]
[WhiteElo "1746"]
[BlackElo "1458"]
[Annotator "NA RC COMBH"]
[PlyCount "71"]
[EventDate "2022.04.18"]
[EventCountry "IND"]
[SourceTitle "playchess.com"]
[Source "ChessBase"]
[SourceQuality "1"]
[TimeControl "5400+30"]

1. Nf3 {[%emt 0:00:19]} d5 {[%emt 0:00:49]} 2. g3 {[%emt 0:00:07]} Nf6 {[%emt 1:30:41]} 3. Bg2 {[%emt 0:00:10]} c6 {[%emt 0:00:30]} 4. O-O {[%emt 1:31:54]} Bg4 {[%emt 0:00:30]} 5. h3 {[%emt 0:00:30]} Bh5 {[%emt 0:00:00]} 6. d3 Nbd7 {[%emt 0:01:00]} 7. c4 {[%emt 0:01:00]} e6 {[%emt 0:00:30]} 8. cxd5 {[%emt 0:00:30]} cxd5 {[%emt 0:00:30]} 9. Qb3 {[%emt 0:00:30]} Qb6 {[%emt 0:00:30]} 10. Qc2 {[%emt 0:00:30]} Be7 {[%emt 0:00:30]} 11. Nc3 {[%emt 0:00:30]} Rc8 {[%emt 0:00:00]} 12. Be3 Qd8 {[%emt 0:01:00]} 13. Qb3 {[%emt 0:01:00]} b6 {[%emt 0:00:00]} 14. Rfc1 O-O {[%emt 0:00:00]} 15. g4 Bg6 {[%emt 0:01:30]} 16. Nb5 {[%emt 0:01:30]} Rxc1+ {[%emt 0:00:30]} 17. Rxc1 {[%emt 0:00:30]} a6 {[%emt 0:00:00]} 18. Nbd4 Nc5 {[%emt 0:00:00]} 19. Qc2 Bd6 {[%emt 0:00:00]} 20. b4 Ncd7 {[%emt 0:02:00]} 21. Qa4 {[%emt 0:02:00]} e5 {[%emt 0:00:30]} 22. Nc6 {[%emt 0:00:30]} Qa8 {[%emt 0:00:30]} 23. g5 {[%emt 0:00:30]} e4 {[%emt 0:00:30]} 24. gxf6 {[%emt 0:00:30]} exf3 {[%emt 0:00:30]} 25. Ne7+ {[%emt 0:00:30]} Bxe7 {[%emt 0:00:00]} 26. fxe7 {[%emt 0:00:30]} Re8 {[%emt 0:01:00]} 27. Bxf3 {[%emt 0:00:30]} Rxe7 {[%emt 0:00:30]} 28. Qc6 {[%emt 0:00:30]} Qxc6 {[%emt 0:00:00]} 29. Rxc6 {[%emt 0:00:00]} Re8 {[%emt 0:00:00]} 30. Bxd5 Bf5 {[%emt 0:01:30]} 31. Kg2 {[%emt 0:01:30]} h6 {[%emt 0:00:00]} 32. Rd6 Nf6 {[%emt 0:01:00]} 33. Bf3 {[%emt 0:01:00]} Be6 {[%emt 0:00:30]} 34. Rxb6 {[%emt 0:00:30]} Bxa2 {[%emt 0:00:30]} 35. Rxa6 {[%emt 0:00:00]} Bd5 {[%emt 0:00:30]} 36. Rxf6 {[%emt 0:00:00]} 1-0

[Event "31st MPL National U18 Chess-ch 2022"]
[Site "Pollachi"]
[Date "2022.04.23"]
[Round "11.1"]
[White "Harshad S"]
[Black "Soham Kamotra"]
[Result "1/2-1/2"]
[ECO "B12"]
[WhiteElo "2328"]
[BlackElo "2229"]
[Annotator "TA"]
[PlyCount "61"]
[EventDate "2022.04.18"]
[EventCountry "IND"]
[SourceTitle "playchess.com"]
[Source "ChessBase"]
[SourceQuality "1"]
[TimeControl "5400+30"]

{[%evp 16,61,-15,-29,-36,-53,-34,-37,0,-49,51,-65,-29,-66,0,-53,-54,-87,-76,-65,0,0,0,0,0,-83,0,-12,-17,-35,-32,-162,-151,-177,-91,-243,-235,-879,0,-254,0,-868,0,-262,0,-873,0,-255]} 1. e4 {[%emt 0:00:05]} c6 {[%emt 0:00:08][%cal Bc7c6,Bc6c5][%mdl 32]} 2. d4 {[%emt 0:00:18]} d5 {[%emt 0:00:06]} 3. e5 {[%emt 0:00:07]} Bf5 {[%emt 0:00:06]} 4. Nc3 {[%emt 0:00:09]} e6 {[%emt 0:00:07]} 5. g4 {[%emt 0:00:08]} Bg6 {[%emt 0:00:05]} 6. Nge2 {[%emt 0:00:08]} c5 {[%emt 0:00:18]} 7. h4 {[%emt 0:01:01]} h5 {[%emt 0:00:07]} 8. Nf4 {[%emt 0:00:09]} Bh7 {[%emt 0:00:06]} 9. Nxh5 {[%emt 0:00:16]} Nc6 {[%emt 0:00:26] B12: Caro-Kann: Advance Variation.} 10. dxc5 {[%emt 0:01:47]} Bxc5 {[%emt 0:00:23] And now ...Qb6 would win.} 11. Bg5 {[%emt 0:04:13] [#] 11.Bg2 is vanishing.} Qa5 $146 {[%emt 0:25:46][%mdl 1024] Hoping for ...d4. Black has compensation. Black is slightly better.} (11... Qb6 $5 {[%cal Rc5f2]} 12. Nxg7+ Kf8 13. Nxe6+ fxe6 14. Qf3+ Ke8 $15) ({Predecessor:} 11... Qc7 12. f4 a6 13. Bd3 Bxd3 14. Qxd3 Nb4 15. Qe2 Rc8 16. a3 Nc6 17. Nxg7+ Kf8 {1-0 (34) Matlakov,M (2685)-Riazantsev,A (2628) Sochi 2020}) 12. Bg2 {[%emt 0:34:03]} (12. Bb5 $11 {is superior.}) 12... Ba3 {[%emt 0:10:04]} 13. Bc1 {[%emt 0:26:33] [#]} (13. Nxg7+ Kf8 14. Bd2 (14. Nxe6+ fxe6 15. Bd2 Bxb2 $11) 14... Bxb2 15. Nxd5 Qc5 16. Nxe6+ fxe6 $11) (13. Bd2 $14 Bxb2 14. Nxd5 $1 (14. Nxg7+ Kf8 $11)) 13... O-O-O $1 {[%emt 0:07:09]} 14. O-O {[%emt 0:00:23]} (14. Nxg7 Bf8 15. Nxe6 fxe6 $19) (14. Kf1 Qb4) 14... Bb4 {[%emt 0:01:48]} ({Better is} 14... Be7 $15) 15. Bg5 {[%emt 0:06:59]} (15. Nxg7 $11 d4 16. Bxc6 dxc3 17. Qf3 bxc6 18. bxc3 (18. Qxf7 cxb2 19. Bxb2 Bxc2 $17)) 15... Be7 $15 {[%emt 0:05:04]} 16. Re1 {[%emt 0:07:49]} Bxg5 {[%emt 0:46:47]} 17. hxg5 {[%emt 0:00:02]} d4 {[%emt 0:00:00]} (17... Nge7 $15) 18. Ne4 {[%emt 0:03:53] Nd6+ is the strong threat.} Qxe5 {[%emt 0:00:00] Strongly threatening ...Bxe4.} 19. Qd2 {[%emt 0:02:56]} Nge7 {[%emt 0:00:00]} 20. b4 {[%emt 0:00:54]} (20. Nef6 $1 $11 Qb5 21. Nxh7 (21. Nxg7 Qxb2 22. Nxh7 Rxh7 $11) 21... Rxh7 22. Qf4) 20... Qb5 {[%emt 0:00:00]} (20... Qc7 $17) 21. Rab1 {[%emt 0:01:04][%cal Oa2a4]} Bxe4 {[%emt 0:00:00]} 22. Rxe4 {[%emt 0:00:51][%cal Oa2a4]} Nd5 $36 {[%emt 0:00:00][%mdl 2048] Threatens to win with ...Nc3. Black is more active.} 23. Rxd4 {[%emt 0:03:53]} (23. a4 $15 Qb6 24. b5) 23... Nxd4 $19 {[%emt 0:00:00]} 24. Qxd4 {[%emt 0:00:01] [#]} Qb6 {[%emt 0:00:00]} ({Black should try} 24... g6 $1 $19 {[%cal Rg6h5]} 25. c4 Qb6) 25. Qc4+ $2 {[%emt 0:00:11]} (25. Qxg7 $17 Rhg8 26. Qe5) 25... Qc7 {[%emt 0:00:00]} 26. Qd4 {[%emt 0:00:05]} (26. Qxc7+ Kxc7 27. a3) 26... Qb6 $2 {[%emt 0:00:00]} (26... Nc3 27. Qxa7 Nxb1) 27. Qc4+ {[%emt 0:00:08]} ({Reject} 27. Qxg7 Rhg8 28. Qe5 Qd6 29. Qxd6 Rxd6 $17) 27... Qc7 $2 {[%emt 0:00:00]} (27... Kb8 28. a4 Qd6) 28. Qd4 $1 {[%emt 0:00:06]} Qb6 $2 {[%emt 0:00:00]} (28... Nc3 29. Qxa7 Nxb1) 29. Qc4+ {[%emt 0:00:03]} ({Don't play} 29. Qxg7 Rhg8 30. Qe5 Qd6 31. Qxd6 Rxd6 32. Bxd5 exd5 $17) 29... Qc7 $2 {[%emt 0:00:00]} (29... Kb8 30. a4 Qd6) 30. Qd4 $1 {[%emt 0:00:01]} Qb6 $2 {[%emt 0:00:00]} (30... Nc3 31. Qxa7 Nxb1) 31. Qc4+ $1 {[%emt 0:00:01][%mdl 32768] Weighted Error Value: White=0.58/Black=1.34. An unexpected result.} ({But not} 31. Qxg7 Rhg8 32. Qe5 Qd6 33. Qxd6 Rxd6 $17) 1/2-1/2

[Event "31st MPL National U18 Chess-ch 2022"]
[Site "Pollachi"]
[Date "2022.04.23"]
[Round "11.2"]
[White "Krishnan Ritvik"]
[Black "Srihari L R"]
[Result "1/2-1/2"]
[ECO "B06"]
[WhiteElo "1761"]
[BlackElo "2400"]
[Annotator "TA"]
[PlyCount "65"]
[EventDate "2022.04.18"]
[EventCountry "IND"]
[SourceTitle "playchess.com"]
[Source "ChessBase"]
[SourceQuality "1"]
[TimeControl "5400+30"]

{[%evp 13,65,12,13,23,16,26,24,6,45,45,54,53,70,72,64,64,75,77,75,64,86,51,41,42,59,25,37,35,27,8,24,19,14,24,36,6,4,10,18,18,18,23,22,25,19,22,31,8,9,9,8,10,23,0]} 1. e4 {[%emt 0:00:30]} g6 {[%emt 0:00:30]} 2. d4 {[%emt 0:00:30]} Bg7 {[%emt 0:00:30]} 3. Nf3 {[%emt 0:00:30]} d6 {[%emt 0:00:30]} 4. Bc4 {[%emt 0:00:30]} c6 {[%emt 0:00:30]} 5. Bb3 {[%emt 0:00:30]} Nf6 {[%emt 0:00:30]} 6. Qe2 {[%emt 0:00:30]} O-O {[%emt 0:00:30]} 7. O-O {[%emt 0:00:30][%cal Bh1f1,Bf1d1,Bd1d6][%mdl 32]} Qc7 {[%emt 0:00:30]} 8. Nc3 {[%emt 0:00:30] B06: Modern Defence.} e5 {[%emt 0:00:30]} 9. dxe5 {[%emt 0:00:30]} dxe5 {[%emt 0:00:30]} 10. Rd1 {[%emt 0:00:30]} Nbd7 {[%emt 0:00:30] [#]} 11. Qc4 $146 {[%emt 0:00:30][%cal Oc3b5] And now Nb5! would win.} ({Predecessor:} 11. a3 Nc5 12. Ba2 Be6 13. Bxe6 Nxe6 14. Be3 Nh5 15. g3 Rad8 16. Qc4 b5 17. Qb3 {0-1 (29) Cajka,T (1847)-Omelka,R (2120) Stare Mesto 2008}) 11... Nb6 {[%emt 0:00:30]} 12. Qc5 {[%emt 0:00:30][%cal Oc3b5]} Nfd7 {[%emt 0:00:30]} 13. Qd6 {[%emt 0:00:30] 0x0.00249b13221edp-1022s more active pieces. The black rooks are badly placed.} Qxd6 {[%emt 0:00:30]} 14. Rxd6 {[%emt 0:00:30]} Nc5 {[%emt 0:00:30]} 15. Be3 {[%emt 0:00:30]} Nxb3 {[%emt 0:00:30]} 16. axb3 {[%emt 0:00:30] [#] Strongly threatening Bxb6.} ({Don't play} 16. cxb3 Bg4 $11) 16... Bg4 {[%emt 0:00:30]} 17. h3 {[%emt 0:00:30]} Bxf3 {[%emt 0:00:30]} 18. gxf3 {[%emt 0:00:30]} Rfe8 {[%emt 0:00:30]} 19. Na4 {[%emt 0:00:30]} Bf8 {[%emt 0:00:30]} 20. Rd3 {[%emt 0:00:30]} Nxa4 {[%emt 0:00:30]} 21. Rxa4 {[%emt 0:00:30]} c5 {[%emt 0:00:30]} 22. Ra1 {[%emt 0:00:30]} b6 {[%emt 0:00:30]} 23. Rd5 {[%emt 0:00:30]} a5 {[%emt 0:00:30]} 24. c3 {[%emt 0:00:30]} f6 {[%emt 0:00:30]} 25. Rd7 {[%emt 0:00:30]} Rad8 {[%emt 0:00:30]} 26. Rad1 {[%emt 0:00:30]} Rxd7 {[%emt 0:00:30]} 27. Rxd7 $11 {[%emt 0:00:30][%mdl 4096] Endgame KRB-KRB} Re6 {[%emt 0:00:30]} 28. Kf1 {[%emt 0:00:30]} Rd6 {[%emt 0:00:30]} 29. Rb7 {[%emt 0:00:30]} Rd1+ {[%emt 0:00:30]} 30. Ke2 {[%emt 0:00:30]} Rb1 {[%emt 0:00:30]} 31. Rxb6 {[%emt 0:00:30]} Rxb2+ {[%emt 0:00:30]} 32. Kd3 {[%emt 0:00:30]} f5 {[%emt 0:00:30]} 33. Rb5 {[%emt 0:00:30] Weighted Error Value: White=0.07 (flawless) /Black=0.06 (flawless)} 1/2-1/2

[Event "31st MPL National U18 Chess-ch 2022"]
[Site "Pollachi"]
[Date "2022.04.23"]
[Round "11.3"]
[White "Apoorv Kamble"]
[Black "Vignesh B"]
[Result "1/2-1/2"]
[ECO "B32"]
[WhiteElo "1679"]
[BlackElo "2249"]
[Annotator "TA"]
[PlyCount "91"]
[EventDate "2022.04.18"]
[EventCountry "IND"]
[SourceTitle "playchess.com"]
[Source "ChessBase"]
[SourceQuality "1"]
[TimeControl "5400+30"]

{[%evp 13,91,14,7,13,20,8,52,54,57,58,65,55,52,54,62,68,72,68,103,70,106,104,105,106,109,110,100,100,107,104,104,100,104,83,104,99,84,49,57,41,51,39,45,38,61,63,110,89,99,108,171,189,162,104,248,104,102,104,139,114,114,114,114,114,114,114,166,114,235,0,171,149,151,114,163,0,149,114,114,114]} 1. e4 {[%emt 0:00:02]} c5 {[%emt 0:00:42]} 2. Nf3 {[%emt 0:00:06][%cal Bg1f3,Bf3d4,Bd4b5][%mdl 32]} Nc6 {[%emt 0:00:04]} 3. d4 {[%emt 0:00:05]} cxd4 {[%emt 0:00:13]} 4. Nxd4 {[%emt 0:00:01]} e5 {[%emt 0:02:38]} 5. Nb5 {[%emt 0:00:09]} d6 {[%emt 0:00:06]} 6. Bc4 {[%emt 0:00:05]} a6 {[%emt 0:10:35]} 7. N5c3 {[%emt 0:00:18]} Nf6 {[%emt 0:00:05]} 8. Bg5 {[%emt 0:00:09] B32: Sicilian: Löwenthal and Kalashnikov Variations.} Be6 {[%emt 0:00:34]} 9. Nd5 {[%emt 0:01:45] [#]} Bxd5 $146 {[%emt 0:27:38]} (9... Be7) (9... b5 10. Bb3 Be7 11. Nxe7 Nxe7 12. Nc3 b4 13. Nd5 Nexd5 14. exd5 Bd7 15. O-O O-O) (9... Be7 $5 {[%cal Rf6e4]}) ({Predecessor:} 9... b5 10. Bb3 Be7 11. Nxe7 Nxe7 12. Nc3 b4 13. Nd5 Nexd5 14. exd5 Bd7 15. O-O O-O {0-1 (43) Rantanen,V-Laiho,H Finland 1990}) 10. Bxd5 {[%emt 0:01:22] White is slightly better.} Be7 {[%emt 0:00:25]} 11. Bxf6 {[%emt 0:01:36]} Bxf6 {[%emt 0:00:06]} 12. O-O {[%emt 0:00:52]} O-O {[%emt 0:01:25]} 13. a4 {[%emt 0:13:23]} Rc8 {[%emt 0:09:41]} 14. Na3 {[%emt 0:00:50]} Qc7 {[%emt 0:00:52]} 15. Qd2 {[%emt 0:17:48]} Nd4 {[%emt 0:14:39]} 16. c3 {[%emt 0:01:22]} Ne6 {[%emt 0:00:05]} 17. g3 {[%emt 0:01:28]} Bg5 {[%emt 0:04:07]} 18. Qe2 {[%emt 0:00:34]} Nc5 {[%emt 0:01:25]} 19. a5 {[%emt 0:04:06]} Nd7 {[%emt 0:09:56]} 20. Nc4 {[%emt 0:14:38]} Kh8 {[%emt 0:03:02]} 21. Rfd1 {[%emt 0:02:22]} g6 {[%emt 0:07:43]} 22. b3 {[%emt 0:14:03][%cal Od5b7]} Be7 {[%emt 0:00:38]} 23. Qc2 {[%emt 0:01:52] White is much more active.} Kg7 {[%emt 0:02:02]} 24. Rd2 {[%emt 0:01:08]} h5 {[%emt 0:00:20][%cal Bh7h5,Bh5h4][%mdl 32]} 25. Qd1 {[%emt 0:03:46]} h4 {[%emt 0:00:23]} 26. Qe2 {[%emt 0:00:54]} Rh8 {[%emt 0:04:06]} 27. Rad1 {[%emt 0:04:21]} Nf6 {[%emt 0:00:00]} 28. Qf3 {[%emt 0:00:02]} hxg3 {[%emt 0:00:00]} 29. fxg3 {[%emt 0:00:02]} Rb8 {[%emt 0:00:44]} (29... Rcf8 $14 {is more appropriate.}) 30. Rf2 {[%emt 0:00:18]} Rbf8 {[%emt 0:00:38]} 31. Nb6 {[%emt 0:03:14]} Nd7 {[%emt 0:00:10]} (31... Bd8) (31... Bd8 $16 {was called for.}) 32. Nxd7 $18 {[%emt 0:07:07]} Qxd7 {[%emt 0:00:01]} 33. Rdf1 {[%emt 0:00:00]} (33. Bxf7 d5 34. Rdf1 (34. exd5 e4) (34. Rxd5 Qc7)) (33. Bxf7 $18 {Hoping for Rdf1.} d5 34. Rdf1 (34. exd5 e4 $11) (34. Rxd5 Qc7 $14)) 33... Bd8 {[%emt 0:01:21]} (33... f6) (33... f6 $16) 34. Qd3 {[%emt 0:04:35]} (34. Bxf7 Rh6 35. Qd3) (34. Bxf7 $18 {has better winning chances. Threatens to win with b4.} Rh6 35. Qd3) 34... f6 $16 {[%emt 0:00:28]} 35. b4 $36 {[%emt 0:00:05][%mdl 2048] White is in control.} Be7 {[%emt 0:00:35]} (35... Rh7 36. Ba2 Kh8) 36. Qe3 {[%emt 0:01:11]} (36. b5) 36... Rc8 {[%emt 0:00:30]} 37. Rf3 {[%emt 0:00:29]} Rc7 {[%emt 0:00:28]} 38. Qf2 {[%emt 0:00:19][%cal Rf3f6]} Rf8 {[%emt 0:00:20]} 39. c4 {[%emt 0:00:47]} Rcc8 {[%emt 0:00:21] [#]} (39... Rfc8 40. Rxf6 Bxf6 41. Qxf6+ Kh6) (39... Qg4 $16 40. Kg2 Qc8) 40. Qa7 {[%emt 0:00:29]} (40. g4 $1 $18) 40... Rb8 {[%emt 0:00:46]} (40... Rc7 $16 41. Qf2 Rcc8) 41. Qf2 $2 {[%emt 0:00:36]} (41. Rb3) (41. b5 $18) 41... Bd8 $2 {[%emt 0:00:20]} (41... Rbc8 $11) 42. Kh1 {[%emt 0:00:38]} Be7 {[%emt 0:00:29]} 43. Rd1 {[%emt 0:00:18]} Qg4 {[%emt 0:00:42]} (43... Rh8 $16 {keeps fighting.} 44. Qb6 Rh7) 44. Rf1 {[%emt 0:00:36]} Qd7 $1 {[%emt 0:01:07] Inhibits b5.} 45. Rc1 Rbc8 {[%emt 0:00:30]} 46. Qe2 {Weighted Error Value: White=0.24 (precise) /Black=0.23 (precise)} 1/2-1/2